Cogmind - Beta 17.1 @@@ ROGUE MODE // 2026.09.10 @ 21:31:04 Player: profwumbo Result: Destroyed by S-10 Pest with Light Assault Rifle Performance ------------- Evolutions (1) 500 Regions Visited (3) 600 Robots Destroyed (1) 5 Value Destroyed (10) 10 Prototype IDs (0) 0 Alien Tech Used (0) 0 Bonus (200) 200 TOTAL SCORE: 1315 Bonus ------- Pacifist 200 Cogmind --------- Core Integrity 0/400 Matter 195/300 Energy 100/100 System Corruption 2% Temperature Cool (98) Movement Flying (40) Location -9/Mines Parts ------- > --- POWER (2) -------- (None) > --- PROPULSION (3) --- Flight Unit > --- UTILITY (2) ------ (None) > --- WEAPON (2) ------- (None) > --- INVENTORY (5) ---- (None) Peak State ------------ > --- POWER ------------ (None) > --- PROPULSION ------- Improved Hover Unit > --- UTILITY ---------- Compact Battery > --- WEAPON ----------- (None) > --- INVENTORY -------- Hardened Medium Armor Plating [Rating: 5] Favorites ----------- Power None Propulsion Flight Unit Hover Unit Improved Hover Unit Flight Unit Flight Unit Utility Compact Battery Storage Compact Battery Protection Hardened Medium Armor Plating Weapon None Build | -11 -10 -9 -9 ------- Run | Yrd Mat Mat Min Slots Evolved 2 | . . 2 . Power 1 | . . 1 . Propulsion 1 | . . 1 . Utility . | . . . . Weapon . | . . . . Parts Attached 8 | . 1 6 1 Power . | . . . . Engine . | . . . . Core . | . . . . Reactor . | . . . . Propulsion 6 | . 1 4 1 Treads . | . . . . Leg . | . . . . Wheel . | . . . . Hover 1 | . . 1 . Flight 5 | . 1 3 1 Utility 2 | . . 2 . Device . | . . . . Storage 1 | . . 1 . Processor . | . . . . Hackware . | . . . . Protection 1 | . . 1 . Artifact . | . . . . Weapon . | . . . . Energy Gun . | . . . . Energy Cannon . | . . . . Ballistic Gun . | . . . . Ballistic Cannon . | . . . . Launcher . | . . . . Special Weapon . | . . . . Impact Weapon . | . . . . Slashing Weapon . | . . . . Piercing Weapon . | . . . . Special Melee Weapon . | . . . . Unidentified Prototypes . | . . . . Parts Lost 6 | . . 4 2 Power . | . . . . Propulsion 4 | . . 2 2 Utility 2 | . . 2 . Weapon . | . . . . Highest Loss Streak 3 | . . 3 1 To Critical Strikes . | . . . . Average Backups . | . . . . Power . | . . . . Propulsion . | . . . . Utility . | . . . . Weapon . | . . . . Tool/Special . | . . . . Unused Backups . | . . . . Power . | . . . . Propulsion . | . . . . Utility . | . . . . Weapon . | . . . . Tool/Special . | . . . . Average Slot Usage (%) 13 | . 7 16 13 Hover 1 | . . 2 . Flight 9 | . 7 9 13 Storage 2 | . . 3 . Peak Build Rating 5 | . 1 5 2 Average Rating 1 | . . 2 1 On Entrance . | . . 1 2 Avg Prop Armor Cover (%) . | . . . . Naked Turns 26 | . 19 7 . Heaviest Build 8 | . . 8 . Greatest Support 12 | 3 4 12 8 Greatest Overweight (x) 1 | . . 1 . Average Overweight (x) . | . . . . Largest Inventory Capacity 5 | 5 5 5 5 Average Capacity 5 | 5 5 5 5 Most Carried 2 | . . 2 1 Average Carried . | . . . . Final Capacity 5 | 5 5 5 5 Final Carried . | . . . . Class Distribution -------------------- 100% | Mutant Dominant Class ---------------- Mutant | -10/Materials Mutant | -9/Materials Mutant | -9/Mines Resources | -11 -10 -9 -9 ----------- Run | Yrd Mat Mat Min Matter Collected 53 | . . 20 33 Remotely . | . . . . Salvage Created 20 | . . 20 . Parts 3 | . . 3 . Haulers Intercepted . | . . . . Recyclers Shooed . | . . . . Parts Field Recycled . | . . . . Retrieved Matter . | . . . . Parts Self-Destructed . | . . . . Prevented . | . . . . Parts Restored . | . . . . Kills | -11 -10 -9 -9 ------- Run | Yrd Mat Mat Min Combat Hostiles Destroyed 1 | . . 1 . Melee 1 | . . 1 . Classes Destroyed 1 | . . 1 . Swarmer 1 | . . 1 . Best Kill Streak 1 | . . 1 . Combat Bots Only 1 | . . 1 . Max Kills in Single Turn 1 | . . 1 . Gunslinging . | . . . . Exploded . | . . . . Melee 1 | . . 1 . Uniques/NPCs Destroyed . | . . . . Combat | -11 -10 -9 -9 -------- Run | Yrd Mat Mat Min Hostile Shots Fired 139 | . 11 93 35 Missed 54 | . 6 32 16 Hits 85 | . 5 61 19 Melee 2 | . . 2 . Projectile 83 | . 5 59 19 Damage Taken 833 | . 53 610 170 Core 443 | . 43 280 120 Absorbed by Shields . | . . . . Core Remaining (%) 91 | 100 82 . . Volleys Fired . | . . . . Largest . | . . . . Hottest . | . . . . Shots Fired . | . . . . Gun . | . . . . Cannon . | . . . . Launcher . | . . . . Special . | . . . . Kinetic . | . . . . Thermal . | . . . . Explosive . | . . . . Electromagnetic . | . . . . Robot Hit Streak . | . . . . Robot Miss Streak . | . . . . Penetration Max . | . . . . Secondary Targets . | . . . . Shots Hit Robots . | . . . . Core Hits 4 | . . 4 . Critical Kills . | . . . . Critical Parts Destroyed . | . . . . Critical Strikes . | . . . . Melee Attacks . | . . . . Impact . | . . . . Slashing . | . . . . Piercing . | . . . . Sneak Attacks . | . . . . Combat Hostiles . | . . . . Follow-up Attacks . | . . . . Damage Inflicted 64 | . . 64 . Guns . | . . . . Cannons . | . . . . Explosions . | . . . . Melee . | . . . . Ramming 64 | . . 64 . Kinetic . | . . . . Thermal . | . . . . Explosive . | . . . . Electromagnetic . | . . . . Impact . | . . . . Slashing . | . . . . Piercing . | . . . . Highest Corruption 2 | . . 2 2 Average Corruption 1 | . . 1 2 Corruption Purged . | . . . . Corruption Blocked . | . . . . Effects 3 | . . 2 1 Heat Flow Errors 2 | . . 1 1 Parts Rejected 1 | . . 1 . Overload Shots . | . . . . Overflow Damage . | . . . . Projectiles . | . . . . Explosions . | . . . . Melee . | . . . . Knockbacks . | . . . . Impact . | . . . . Kinetic . | . . . . Secondary . | . . . . Self-Inflicted Damage 24 | . . 24 . Shots . | . . . . Rammed 31 | . . 31 . Targets Rammed 31 | . . 31 . Kicked . | . . . . Crushed . | . . . . Highest Temperature 146 | . . 100 146 Average Temperature 78 | . . 52 121 Received Heat Transfer 108 | . 30 60 18 Siege Activations . | . . . . Martial Activations . | . . . . Shielding Activations . | . . . . Robots Disrupted . | . . . . Combat Hostiles . | . . . . Robots Corrupted . | . . . . Combat Hostiles . | . . . . Parts Fried . | . . . . Impact Corruptions . | . . . . Robots Melted . | . . . . Combat Hostiles . | . . . . Parts Melted . | . . . . Heat Transferred . | . . . . Parts Sabotaged . | . . . . Parts Stolen . | . . . . Parts Stripped . | . . . . Power Chain Reactions . | . . . . Alert | -11 -10 -9 -9 ------- Run | Yrd Mat Mat Min Maximum Alert Level . | . . . . Low Security (%) 100 | 100 100 100 100 Level 1 . | . . . . Level 2 . | . . . . Level 3 . | . . . . Level 4 . | . . . . Level 5 . | . . . . High Security . | . . . . Max Security . | . . . . Peak Influence 105 | . . 105 40 Initial 40 | . . . 40 Average 25 | . . 38 21 Influence Increases 185 | . . 185 . Destroy 0b10 Robot/C 20 | . . 20 . Lose Combat Pursuer 165 | . . 165 . Influence Decreases 185 | . . 80 105 Entered New Map 65 | . . . 65 Time Decay 70 | . . 50 20 Lost Part 50 | . . 30 20 Squads Dispatched . | . . . . Investigation . | . . . . Extermination . | . . . . Reinforcement . | . . . . Assault . | . . . . Garrison . | . . . . Intercept . | . . . . Searches Triggered . | . . . . Construction Impeded . | . . . . Haulers Reinforced . | . . . . Active Scanning Responses . | . . . . Cargo Convoy Interrupts . | . . . . Stealth | -11 -10 -9 -9 --------- Run | Yrd Mat Mat Min Distress Signals 3 | . 3 . . Communications Jammed . | . . . . Distress Signals . | . . . . Times Spotted 30 | . 7 17 6 Peak Tracking Total 10 | . 10 7 6 Tactical Retreats 4 | . . 4 . Traps | -11 -10 -9 -9 ------- Run | Yrd Mat Mat Min Traps Triggered . | . . . . Indirectly . | . . . . Trap Hack Attempts . | . . . . Triggered . | . . . . Disarmed . | . . . . Reprogrammed . | . . . . Reused . | . . . . Traps Extracted . | . . . . Installed . | . . . . Triggered . | . . . . Machines | -11 -10 -9 -9 ---------- Run | Yrd Mat Mat Min Machines Disabled . | . . . . Max in Single Turn . | . . . . Machines Repaired . | . . . . Machines Dismantled . | . . . . Machines Sabotaged . | . . . . Overloaded Fab Kills . | . . . . Hacking | -11 -10 -9 -9 --------- Run | Yrd Mat Mat Min Machines Accessed . | . . . . Terminals . | . . . . Fabricators . | . . . . Repair Stations . | . . . . Recycling Units . | . . . . Scanalyzers . | . . . . Garrison Access . | . . . . Total Hacks . | . . . . Successful . | . . . . Failed . | . . . . Catastrophic . | . . . . Database Lockouts . | . . . . Manual . | . . . . Terminals . | . . . . Fabricators . | . . . . Repair Stations . | . . . . Recycling Units . | . . . . Scanalyzers . | . . . . Garrison Access . | . . . . Terminal Hacks . | . . . . Fabricator Hacks . | . . . . Repair Station Hacks . | . . . . Recycling Unit Hacks . | . . . . Scanalyzer . | . . . . Garrison Access Hacks . | . . . . Unauthorized Hacks . | . . . . Terminals . | . . . . Fabricators . | . . . . Repair Stations . | . . . . Recycling Units . | . . . . Scanalyzers . | . . . . Garrison Access . | . . . . Data Cores Recovered . | . . . . Used . | . . . . Hacking Detections . | . . . . Full Trace Events . | . . . . Feedback Events . | . . . . Feedback Blocked . | . . . . Robot Schematics Acquired . | . . . . Robots Built . | . . . . Authchips . | . . . . Time . | . . . . Total Robot Build Rating . | . . . . Part Schematics Acquired . | . . . . Parts Built . | . . . . Authchips . | . . . . Time . | . . . . Total Part Build Rating . | . . . . Part Studies Acquired . | . . . . Parts Repaired . | . . . . Time . | . . . . Parts Recycled . | . . . . Recycled Matter . | . . . . Retrieved Matter . | . . . . Retrieved Components . | . . . . Parts Scanalyzed . | . . . . Part Schematics Acquired . | . . . . Parts Damaged . | . . . . Bothacking | -11 -10 -9 -9 ------------ Run | Yrd Mat Mat Min Used RIF Installer . | . . . . Robots Hacked . | . . . . Non-combat . | . . . . Combat . | . . . . Robot Hacks Applied . | . . . . Relay Couplers Released . | . . . . Fabnet Peak Effective % . | . . . . Robots Rewired . | . . . . Allies Hacked . | . . . . Hacks Repelled . | . . . . Allies | -11 -10 -9 -9 -------- Run | Yrd Mat Mat Min Total Allies . | . . . . Largest Group . | . . . . Highest-Rated Group . | . . . . Highest-Rated Ally . | . . . . Total Orders . | . . . . Ally Attacks . | . . . . Total Damage . | . . . . Kills . | . . . . Allies Corrupted . | . . . . Allies Melted . | . . . . Intel | -11 -10 -9 -9 ------- Run | Yrd Mat Mat Min Active Infowar (turns) . | . . . . Robot Analysis Total . | . . . . Derelict Logs Recovered 1 | . . . 1 Drone Launches . | . . . . Drone Recoveries . | . . . . Exploration | -11 -10 -9 -9 ------------- Run | Yrd Mat Mat Min Turns Passed 248 | 15 47 143 43 Spaces Moved 469 | 29 105 233 102 Core 127 | 29 36 62 . Treads . | . . . . Legs . | . . . . Wheels . | . . . . Hover 1 | . . 1 . Flight 341 | . 69 170 102 Fastest Speed 34 | 50 40 34 37 Average Speed 42 | 50 43 41 39 Slowest Speed 120 | 50 50 120 40 Overloaded Moves . | . . . . Propulsion Burnouts . | . . . . Robots Hopped 14 | . 2 9 3 Potential Cave-ins . | . . . . Cave-ins Triggered . | . . . . Exploration Rate (%) 19 | 3 22 25 26 Regions Visited 3 Branch Regions 1 Pre-discovered Areas . | . . . . Known Exits Taken . | . . . . Unknown Exits Taken 3 | 1 1 1 . Scrap Searched 1 | . . . 1 Spaces Dug . | . . . . Terrain Destroyed . | . . . . Melee . | . . . . Projectile . | . . . . AOE . | . . . . Terrain Rammed . | . . . . Walls Destroyed . | . . . . Machines Disabled . | . . . . Actions | -11 -10 -9 -9 --------- Run | Yrd Mat Mat Min Total 496 | 28 103 264 101 Wait 1 | . . 1 . Move 439 | 28 100 215 96 Hop 13 | . 2 8 3 Pick Up 2 | . . 1 1 Fast Attach 6 | . 1 5 . Attach 3 | . . 2 1 Detach 1 | . . 1 . Swap . | . . . . Drop . | . . . . Fire . | . . . . Melee . | . . . . Ram 31 | . . 31 . Kick . | . . . . Crush . | . . . . Escape Stasis . | . . . . Rewire . | . . . . Trap . | . . . . Miscellaneous . | . . . . Route ------- -11/Scrapyard -10/Materials (discovered 2 exits: [*Mat] / [*Min]) -9/Materials -9/Mines History --------- Turn | Location | Event 5 | -11/Scrapyard | Discovered new exit (range 15) 16 | -11/Scrapyard | Entered Materials 57 | -10/Materials | Discovered new exit (range 12) 57 | -10/Materials | Discovered new exit (range 15) 63 | -10/Materials | Entered another Materials area 63 | -9/Materials | Evolved 2 slots: Power x1, Propulsion x1 158 | -9/Materials | Core integrity fell below 50% 187 | -9/Materials | Lost 3 parts (1n2u) 203 | -9/Materials | Discovered new exit (range 7) 206 | -9/Materials | Entered Mines 232 | -9/Mines | Core integrity fell below 20% 249 | -9/Mines | Destroyed by S-10 Pest with Light Assault Rifle Last Messages --------------- System corrupted: Flight Unit rejected. EXIT=FOUND K-01 Serf collects debris. LOCATION=UNKNOWN GOAL=ESCAPE Flight Unit destroyed. Acquired derelict log, extracted data. Data stored: Storage entrances (x1). Searching scrap... Found Cargo Storage Unit. Found VTOL Module. Found Imp. Treads. Found Shield Generator. Found 33 Matter. Acquired 33 matter. Acquired VTOL Module. S-10 Pest destroyed. VTOL Module destroyed. System corrupted: Heat flow error (+170). S-10 Pest destroyed. Map ----- +----------------------------------------------------+ | ????????????????????????????????????????????? | | ??????????????????#####?????????????????????? | | ?????????????????# ##????????????????????? | | ???????????????## #????????????????????? | | ???????????????# #????????????????????? | | ???????????????# #?????????????????????? | | ??????????????## #??????????????????????? | | ??????????????# #???????????????????????? | | ?????????????## #????????????????????????? | | ?????????##### #?????????????????????????? | | ?????????# ##?????????????????????????? | | ????????## #??????????????????????????? | | ???????## #??????????????????????????? | | ???????# ##??????????????????????????? | | ???????# ##??????###??????????????????? | | ???????## #??????# ##?????????????????? | | ????????## ##????# ##????????????????? | | ?????????# #??## ##???????????????? | | ?????????# #??# #???????????????? | | ?????????# ##??# #???????????????? | | ??######## ##?## #???????????????? | | ??# # g g ### #????????????????? | | ??# # s= #?????????????????? | | ??#""" %## ###[ ##?????????????????? | | ??#""" = #?### ##??????????????????? | | ??#""" ## #???## @ #???????????????????? | | ??# ## #????## #??????????????????? | | ??######### #?????# ???????????????? | | ??????????# !#?????## #??????????????? | | ??????????#!=#???????## #####??????????????? | | ??????????# #???####??###??????????????????? | | ???????#### #??## ##??????????????????????? | | ???????# #??# #??????????????????????? | | ???????## #??# #??????????????????????? | | ????????### #??## ##?????????????????????? | | ??????????# #??## #?????????????????????? | | ??????????# #?## #?????????????????????? | | ??????????# #?# ##?????????????????????? | | ??????????# #?# ##??????????????????????? | | ??????????# #?## ##???????????????????????? | | ??????????# #??# #????????????????????????? | | ?????????## #### #????????????????????????? | | ?????????# ## #????????????????????????? | | ?????????# #????????????????????????? | | ?????????# ##????????????????????????? | | ?????????# ##?????????????????????????? | | ?????????# ##??????????????????????????? | | ?????????# ##???????????????????????????? | | ?????????# ##????????????????????????????? | | ????????# #?????????????????????????????? | +----------------------------------------------------+ Best States ------------- Heat Dissipation 28 Energy Generation 5 Energy Capacity 300 Matter Stores 200 Matter Capacity 300 Sight Range 16 Terrain Scan Density 10 Armor Coverage 225 Evasion (%) 62 Item Schematics ----------------- None Robot Schematics ------------------ None Fabricated ------------ Nothing Repaired ---------- Nothing Studied --------- None Alien Tech Used ----------------- None Achievements -------------- None Challenges ------------ None Game ------ Seed SpectralCompanionPrototype Manual? 0 Play Time 00:06:31 Cumulative 26.4 hours Start 2026.09.10 @ 21:25:27 End 2026.09.10 @ 21:31:04 Sessions 1 Manual Loads 0 Difficulty Rogue Special Mode None Game No. 23 Rogue 16 Adventurer 5 Explorer 2 Win Type - Total 0 Types 0/0/0/0/0/0/0/0/0/0 Lore% 11 Gallery% 17 Achievement% 16 Wizard Run 0 Options --------- Layout 1 ASCII 0 Keyboard 1 Movement Vi Keybinds 0 Fullscreen 1 Font 24/Crisp Map View 50x35 Zoom Use 0% Tactical HUD 0 Map Filters NONE Filters NONE Steam 1 RUN: 02a125de-67b8-40b0-92f4-5492186d04a9